bitfinex/quotes_SOLUSD_20260214
["timestamp","ask_amount","ask_price","bid_price","bid_amount"]
[1771060807676,1.78376935,86.316,86.281,1.74530534]
[1771060808001,1.78376935,86.315,86.286,1.74530534]
[1771060808201,6.05093705,86.324,86.301,1.74530534]
[1771060808378,0.1,86.33,86.28,5.81048468]
[1771060808379,0.1,86.33,86.31,7.55579002]
[1771060808566,0.1,86.33,86.302,47.2]
[1771060808567,1.78376935,86.329,86.302,47.2]
[1771060809169,1.78376935,86.328,86.297,1.74530534]
[1771060809618,0.1,86.33,86.301,1.74530534]
[1771060809780,0.1,86.33,86.321,1.74530534]
[1771060809966,0.1,86.33,86.312,47.2]
[1771060810280,1.88376935,86.33,86.308,47.2]
[1771060810467,1.88376935,86.33,86.311,1.74530534]
[1771060810468,0.1,86.33,86.311,1.74530534]
[1771060811188,0.1,86.33,86.308,47.2]
[1771060811488,0.1,86.33,86.309,11.58627721]
[1771060811869,0.1,86.33,86.311,1.74530534]
[1771060812873,1.78376935,86.353,86.321,1.74530534]
[1771060813481,1.78376935,86.365,86.323,1.74530534]
[1771060813676,28.9445548,86.373,86.331,1.74530534]
[1771060813677,1.78376935,86.363,86.331,1.74530534]
[1771060813983,5.81048468,86.36,86.324,11.58426393]
[1771060814194,1.78376935,86.359,86.316,11.58533759]
[1771060814376,1.78376935,86.359,86.317,40.36]
[1771060814578,1.78376935,86.349,86.317,40.36]
[1771060815897,1.78376935,86.347,86.3,1.74530534]
[1771060816076,1.78376935,86.329,86.291,17.94530534]
[1771060816276,1.78376935,86.329,86.292,16.2]
[1771060816987,1.78376935,86.329,86.293,1.74530534]
[1771060817189,1.78376935,86.329,86.295,1.74530534]
[1771060819280,1.78376935,86.329,86.296,11.58802261]
[1771060819580,1.78376935,86.339,86.3,5.81048468]
[1771060819791,1.78376935,86.339,86.297,47.16]
[1771060819992,1.78376935,86.339,86.297,48.90530534]
[1771060820190,1.78376935,86.339,86.298,1.74530534]
[1771060821808,1.78376935,86.337,86.3,1.74530534]
[1771060822389,1.78376935,86.337,86.301,1.74530534]
[1771060822816,5.81048468,86.33,86.299,11.58761978]
[1771060823003,1.78376935,86.309,86.271,1.74530534]
[1771060823306,1.78376935,86.299,86.267,47.22]
[1771060823902,11.58774089,86.299,86.268,11.59178374]
[1771060824082,1.78376935,86.298,86.268,11.59178374]
[1771060824283,11.58774089,86.299,86.244,28.98723184]
[1771060824284,1.78376935,86.279,86.244,28.98723184]
[1771060824984,1.78376935,86.279,86.245,1.74530534]
[1771060825379,1.78376935,86.279,86.245,13.3401804]
[1771060825597,5.81048468,86.27,86.245,13.3401804]
[1771060826301,5.81048468,86.26,86.24,11.59549401]
[1771060826497,1.78376935,86.262,86.24,11.59549401]
[1771060827197,11.5904402,86.278,86.238,47.24]
[1771060827198,1.78376935,86.259,86.238,47.24]
[1771060827404,1.78376935,86.259,86.234,47.26]
[1771060827604,1.78376935,86.257,86.234,47.26]
[1771060827909,1.78376935,86.257,86.23,11.59681768]
[1771060829105,1.78376935,86.239,86.224,44.28052981]
[1771060829401,1.78376935,86.239,86.215,11.59882873]
[1771060830309,1.78376935,86.239,86.21,11.59951626]
[1771060830807,5.81048468,86.23,86.21,11.59951626]
[1771060831507,5.81048468,86.23,86.208,1.92506075]
[1771060831704,5.81048468,86.23,86.209,11.59966114]
[1771060833001,5.81048468,86.24,86.222,1.92506075]
[1771060833198,11.59433732,86.249,86.222,13.52302878]
[1771060833505,5.81048468,86.24,86.223,1.92506075]
[1771060833687,5.81048468,86.24,86.217,1.92506075]
[1771060835708,5.81048468,86.23,86.21,11.59951857]
[1771060835888,5.81048468,86.23,86.205,1.92506075]
[1771060835889,5.81048468,86.24,86.219,1.92506075]
[1771060836091,5.81048468,86.24,86.221,13.05562726]
[1771060836290,5.81048468,86.26,86.223,1.92506075]
[1771060836511,5.81048468,86.26,86.225,1.92506075]
[1771060836709,5.81048468,86.25,86.226,1.92506075]
[1771060836914,5.81048468,86.24,86.224,47.34]
[1771060837286,0.02687409,86.249,86.221,11.13056651]
[1771060838111,0.02687409,86.249,86.223,11.59770411]
[1771060838406,5.81048468,86.25,86.224,1.92506075]
[1771060838800,0.03232659,86.249,86.221,11.13056651]
[1771060839385,5.81048468,86.24,86.221,11.13056651]
[1771060840589,70.26,86.273,86.221,11.13056651]
[1771060840590,11.5927244,86.261,86.223,1.92506075]
[1771060840895,5.81048468,86.25,86.223,1.92506075]
[1771060841092,0.04025091,86.249,86.223,1.92506075]
[1771060841606,0.04025091,86.249,86.221,11.13056651]
[1771060842008,0.04025091,86.249,86.222,1.92506075]
[1771060842307,11.63458823,86.249,86.222,1.92506075]
[1771060842612,5.81048468,86.23,86.221,11.08514632]
[1771060842991,5.81048468,86.24,86.221,11.08514632]
[1771060843510,5.81048468,86.23,86.221,11.08514632]
[1771060843708,5.81048468,86.24,86.221,11.08514632]
[1771060844010,11.59433732,86.249,86.222,1.94777084]
[1771060844212,5.81048468,86.25,86.223,1.94777084]
[1771060844394,11.59349012,86.256,86.225,1.94777084]
[1771060845000,5.81048468,86.25,86.225,1.94777084]
[1771060847404,6.05559574,86.257,86.227,1.94777084]
[1771060847711,5.81048468,86.26,86.229,1.94777084]
[1771060849409,17.40470331,86.25,86.222,1.94777084]
[1771060851209,17.40470331,86.25,86.224,1.94777084]
[1771060851622,11.59205248,86.266,86.224,1.94777084]
[1771060851821,6.05489205,86.267,86.231,1.94777084]
[1771060852008,5.81048468,86.26,86.231,1.94777084]
[1771060852534,0.022067,86.249,86.223,1.94777084]
[1771060853223,0.022067,86.249,86.223,13.54560436]
[1771060853628,0.022067,86.249,86.224,1.94777084]
[1771060854319,17.4047447,86.25,86.224,1.94777084]
[1771060855005,6.05453581,86.267,86.231,1.94777084]
[1771060855323,11.59083658,86.276,86.233,1.94777084]
[1771060855521,5.81695958,86.28,86.232,47.54]
[1771060855522,5.81695958,86.28,86.241,1.94777084]
[1771060855702,6.05374322,86.281,86.243,1.94777084]
[1771060855902,5.81695958,86.28,86.243,1.94777084]
[1771060856920,17.29676562,86.28,86.243,1.94777084]
[1771060858525,17.29676562,86.28,86.245,1.94777084]
[1771060860323,0.03969806,86.269,86.24,1.94777084]
[1771060860508,17.29676562,86.26,86.24,1.94777084]
[1771060860910,0.03969806,86.269,86.24,1.94777084]
[1771060861407,6.05374322,86.281,86.251,1.94777084]
[1771060861619,165.0,86.315,86.271,1.94777084]
[1771060861620,11.5869285,86.305,86.271,1.94777084]
[1771060861830,11.58741219,86.301,86.271,1.94777084]
[1771060862151,11.58842548,86.293,86.271,1.94777084]
[1771060862606,17.29676562,86.29,86.271,1.94777084]
[1771060863622,28.88572235,86.29,86.271,1.94777084]
[1771060863830,28.88572235,86.29,86.261,1.94777084]
[1771060864017,28.93563727,86.29,86.261,1.94777084]
[1771060864818,17.29676562,86.28,86.261,1.94777084]
[1771060865330,0.0518668,86.289,86.261,1.94777084]
[1771060865734,11.58817597,86.295,86.263,1.94777084]
[1771060866030,17.35058951,86.31,86.263,1.94777084]
[1771060866935,11.58749616,86.3,86.265,1.94777084]
[1771060867111,6.05197817,86.315,86.271,1.78145844]
[1771060867316,11.58548778,86.315,86.281,1.78145844]
[1771060868121,11.58548778,86.315,86.282,1.78145844]
[1771060868316,6.05126643,86.325,86.291,1.78145844]
[1771060868637,28.88024948,86.33,86.291,1.78145844]
[1771060869018,28.88024948,86.33,86.292,11.58855977]
[1771060869214,11.58287436,86.335,86.293,1.78145844]
[1771060869429,11.58287436,86.335,86.301,1.78145844]
[1771060870516,1.82146109,86.338,86.302,11.58721698]
[1771060870722,1.82146109,86.338,86.303,1.78145844]
[1771060872238,11.58251966,86.337,86.305,1.78145844]
[1771060873029,17.29676562,86.34,86.305,1.78145844]
[1771060873234,11.58193401,86.342,86.305,1.78145844]
[1771060873435,4.06923687,86.349,86.31,17.29676562]
[1771060873632,1.82146109,86.347,86.313,1.78145844]
[1771060874336,1.82146109,86.347,86.315,1.78145844]
[1771060875332,1.82146109,86.359,86.321,1.78145844]
[1771060875638,1.82146109,86.357,86.331,1.78145844]
[1771060875943,1.82146109,86.364,86.331,1.78145844]
[1771060876442,1.82146109,86.359,86.332,1.78145844]
[1771060877627,1.82146109,86.359,86.333,1.78145844]
[1771060878039,13.40107977,86.359,86.333,1.78145844]
[1771060878237,13.40107977,86.359,86.326,1.78145844]
[1771060878238,1.82146109,86.358,86.326,1.78145844]
[1771060878948,1.82146109,86.349,86.32,11.5846758]
[1771060879126,1.82146109,86.349,86.319,1.78145844]
[1771060879326,1.82146109,86.349,86.319,13.36636258]
[1771060879653,1.82146109,86.349,86.32,1.78145844]
[1771060879847,0.1,86.38,86.341,1.78145844]
[1771060880037,0.1,86.38,86.321,57.92333267]
[1771060880038,0.1,86.38,86.351,1.78145844]
[1771060880241,1.82146109,86.379,86.351,1.78145844]
[1771060881325,1.82146109,86.379,86.345,1.78145844]
[1771060881646,1.82146109,86.379,86.351,1.78145844]
[1771060881827,1.82146109,86.379,86.353,1.78145844]
[1771060883243,1.82146109,86.373,86.352,13.36196612]
[1771060883443,5.90266249,86.38,86.353,1.78145844]
[1771060883648,7.72412358,86.38,86.353,1.78145844]
[1771060884033,1.82146109,86.359,86.315,1.78145844]
[1771060884236,1.82146109,86.349,86.316,47.78]
[1771060884534,1.82146109,86.339,86.301,1.78145844]
[1771060884851,1.82146109,86.329,86.303,1.78145844]
[1771060885351,1.82146109,86.337,86.303,1.78145844]
[1771060886044,1.82146109,86.319,86.295,1.78145844]
[1771060886349,17.27515975,86.33,86.291,1.78145844]
[1771060886523,1.82146109,86.335,86.291,1.78145844]
[1771060886728,17.27515975,86.33,86.291,1.78145844]
[1771060887623,17.27515975,86.33,86.293,1.78145844]
[1771060888029,1.82146109,86.329,86.293,1.78145844]
[1771060888230,1.82146109,86.329,86.265,57.96093433]
[1771060888231,1.82146109,86.299,86.274,1.78145844]
[1771060888448,1.82146109,86.279,86.251,1.78145844]
[1771060888751,1.82146109,86.279,86.244,1.78145844]
[1771060889247,17.27515975,86.3,86.244,1.78145844]
[1771060889248,17.27515975,86.26,86.244,1.78145844]
[1771060889434,17.27515975,86.28,86.245,47.84]
[1771060889631,17.27515975,86.28,86.247,11.59460618]
[1771060889851,17.27515975,86.28,86.248,1.78145844]
[1771060890036,1.82146109,86.279,86.248,1.78145844]
[1771060890229,1.82146109,86.279,86.23,17.27515975]
[1771060890230,17.27515975,86.26,86.241,47.86]
[1771060890533,17.27515975,86.26,86.167,46.42140358]
[1771060890534,1.82146109,86.249,86.228,11.59705259]
[1771060890738,1.82146109,86.239,86.218,11.59849686]
[1771060891868,17.27515975,86.24,86.211,28.99833518]
[1771060891869,17.27515975,86.24,86.212,1.94194025]
[1771060892038,1.99638663,86.248,86.212,1.94194025]
[1771060892236,17.27515975,86.24,86.212,1.94194025]
[1771060892434,17.27515975,86.25,86.212,1.94194025]
[1771060893950,17.27515975,86.25,86.214,1.94194025]
[1771060894357,19.27154638,86.25,86.214,1.94194025]
[1771060894559,1.99638663,86.239,86.213,11.59917877]
[1771060896963,17.27515975,86.23,86.213,11.59917877]
[1771060897944,17.27515975,86.23,86.208,59.4797604]
[1771060897945,1.99638663,86.229,86.208,59.4797604]
[1771060898141,1.99638663,86.241,86.209,1.94194025]
[1771060898357,17.27515975,86.24,86.21,11.59958241]
[1771060898668,17.27515975,86.24,86.211,1.94194025]
[1771060899563,1.99638663,86.259,86.211,1.94194025]
[1771060899937,1.95705961,86.269,86.231,1.9800289]
[1771060900143,17.27515975,86.26,86.233,1.9800289]
[1771060900344,1.95705961,86.259,86.234,59.61624182]
[1771060900755,17.27515975,86.26,86.235,1.9800289]
[1771060902267,4.61729252,86.294,86.185,61.9]
[1771060902268,17.27515975,86.25,86.224,1.9800289]
[1771060902463,1.95705961,86.249,86.222,48.04]
[1771060903364,1.95705961,86.249,86.223,11.59783352]
[1771060906468,1.95705961,86.248,86.223,11.59783352]
[1771060906675,1.95705961,86.248,86.223,13.57786242]
[1771060910983,1.95705961,86.229,86.207,11.5999561]
[1771060911175,1.95705961,86.229,86.208,48.18]
[1771060911360,1.95705961,86.229,86.208,50.1600289]
[1771060911562,1.95705961,86.239,86.209,1.9800289]
[1771060912466,11.59581622,86.238,86.209,1.9800289]
[1771060912773,17.27515975,86.24,86.211,1.9800289]
[1771060912975,1.95705961,86.244,86.211,1.9800289]
[1771060913386,1.95705961,86.244,86.213,1.9800289]
[1771060914278,1.95705961,86.229,86.211,48.2]
[1771060914783,1.95705961,86.229,86.211,48.22]
[1771060917278,5.81898184,86.23,86.212,11.59931332]
[1771060917580,5.81898184,86.23,86.213,1.9800289]
[1771060918687,5.81898184,86.23,86.214,48.28]
[1771060918688,1.95705961,86.229,86.214,48.28]
[1771060919573,5.81898184,86.23,86.215,11.5989097]
[1771060920286,1.95705961,86.229,86.207,11.59997858]
[1771060920493,5.81898184,86.22,86.208,48.3]
[1771060920671,1.95705961,86.219,86.195,48.3]
[1771060920873,1.95705961,86.199,86.186,48.3]
[1771060921079,1.95705961,86.199,86.185,48.3]
[1771060921680,1.95705961,86.199,86.185,59.90287241]
[1771060922204,1.88799198,86.229,86.187,1.97100616]
[1771060922383,1.88799198,86.229,86.189,1.97100616]
[1771060922986,28.98861118,86.241,86.189,1.97100616]
[1771060922987,5.81898184,86.22,86.189,1.97100616]
[1771060923377,1.88799198,86.209,86.19,11.60227404]
[1771060923876,1.88799198,86.209,86.19,48.32]
[1771060924193,1.88799198,86.218,86.191,1.97100616]
[1771060925288,1.88799198,86.218,86.192,59.94200482]
[1771060926384,1.88799198,86.209,86.183,1.97100616]
[1771060926583,1.88799198,86.209,86.193,48.36]
[1771060928784,1.88799198,86.199,86.193,48.36]
[1771060929096,1.88799198,86.226,86.195,1.97100616]
[1771060929575,5.81898184,86.22,86.195,1.97100616]
[1771060930498,1.88799198,86.229,86.197,1.97100616]
[1771060930698,1.88799198,86.229,86.199,1.97100616]
[1771060931995,1.88799198,86.227,86.191,1.97100616]
[1771060932175,4.61729252,86.254,86.173,58.02225697]
[1771060932176,1.88799198,86.242,86.201,1.97100616]
[1771060932982,5.81898184,86.24,86.201,1.97100616]
[1771060933181,7.70697382,86.24,86.201,1.97100616]
[1771060933490,1.88799198,86.239,86.203,1.97100616]
[1771060933694,1.88799198,86.239,86.205,1.97100616]
[1771060933894,7.9432102,86.281,86.221,1.97100616]
[1771060934209,6.05521822,86.281,86.261,1.97100616]
[1771060934380,1.88799198,86.309,86.271,1.97100616]
[1771060935299,1.88799198,86.309,86.272,48.48]
[1771060935480,1.88799198,86.309,86.272,50.45100616]
[1771060935681,1.88799198,86.309,86.273,1.97100616]
[1771060935881,1.88799198,86.309,86.274,48.48]
[1771060936076,1.88799198,86.307,86.276,13.56171504]
[1771060936507,1.88799198,86.307,86.277,1.97100616]
[1771060937914,1.88799198,86.307,86.278,48.48]
[1771060938711,1.88799198,86.307,86.279,11.59030586]
[1771060940302,1.88799198,86.307,86.28,1.97100616]
[1771060943215,1.88799198,86.307,86.279,11.59030586]
[1771060943509,1.88799198,86.299,86.278,48.52]
[1771060944289,1.88799198,86.31,86.279,1.97100616]
[1771060946211,1.88799198,86.308,86.279,1.97100616]
[1771060946411,1.88799198,86.308,86.277,48.54]
[1771060947495,1.88799198,86.316,86.28,17.28651122]
[1771060948098,11.58547181,86.315,86.28,17.28651122]
[1771060948291,11.58547181,86.315,86.281,60.1500372]
[1771060949115,1.88799198,86.314,86.282,1.97100616]
[1771060950116,11.58574027,86.313,86.284,1.97100616]
[1771060950721,1.88799198,86.312,86.284,1.97100616]
[1771060953813,1.97924712,86.31,86.284,1.97100616]
[1771060955010,1.97924712,86.31,86.286,1.99063753]
[1771060955208,11.58600873,86.311,86.286,1.99063753]
[1771060955410,1.97924712,86.31,86.286,1.99063753]
[1771060955718,11.58627721,86.309,86.286,1.99063753]
[1771060955910,1.97924712,86.308,86.286,1.99063753]
[1771060956308,1.97924712,86.319,86.287,1.99063753]
[1771060957509,11.58520407,86.317,86.287,1.99063753]
[1771060957830,1.97924712,86.316,86.287,1.99063753]
[1771060958526,11.58547181,86.315,86.287,1.99063753]
[1771060958804,1.97924712,86.312,86.287,1.99063753]
[1771060960816,1.90252928,86.31,86.287,1.99063753]
[1771060962019,1.90252928,86.31,86.281,48.68]
[1771060962499,1.90252928,86.31,86.28,17.39646487]
[1771060963120,1.90252928,86.31,86.28,19.48812836]
[1771060964118,1.90252928,86.308,86.273,60.29098606]
[1771060964310,1.90252928,86.299,86.264,48.72]
[1771060964818,1.90252928,86.299,86.264,50.81166349]
[1771060965123,1.90252928,86.297,86.265,2.09166349]
[1771060965923,1.90252928,86.297,86.271,2.09166349]
[1771060966109,11.5872279,86.302,86.28,5.80635091]
[1771060966421,13.48975718,86.302,86.281,2.09166349]
[1771060966912,1.90252928,86.301,86.271,2.09166349]
[1771060967093,1.90252928,86.299,86.272,11.59124629]
[1771060967298,1.90252928,86.307,86.281,2.09166349]
[1771060967792,1.90252928,86.307,86.272,40.56936201]
[1771060967793,1.90252928,86.307,86.274,2.09166349]
[1771060969007,1.90252928,86.305,86.276,2.09166349]
[1771060971619,1.90252928,86.299,86.264,50.81166349]
[1771060972927,1.90252928,86.289,86.264,48.72]
[1771060973126,1.90252928,86.289,86.258,2.09166349]
[1771060973713,1.90252928,86.287,86.258,2.09166349]
[1771060974909,1.90252928,86.279,86.25,2.09166349]
[1771060976511,13.49189487,86.286,86.251,2.09166349]
[1771060976729,1.90252928,86.293,86.261,2.09166349]
[1771060977108,11.58855977,86.292,86.263,2.09166349]
[1771060977422,13.49108905,86.292,86.263,2.09166349]
[1771060977823,1.90252928,86.291,86.263,2.09166349]
[1771060978033,1.90252928,86.289,86.263,2.09166349]
[1771060979030,1.90252928,86.289,86.264,11.59232124]
[1771060979330,1.90252928,86.289,86.264,13.68398473]
[1771060979831,1.90252928,86.287,86.264,13.68398473]
[1771060980042,1.90252928,86.279,86.254,2.09166349]
[1771060981111,2.00017476,86.277,86.246,1.95156051]
[1771060981317,2.00017476,86.277,86.213,61.9]
[1771060981318,2.00017476,86.256,86.201,11.60079349]
[1771060981515,5.80965019,86.21,86.192,1.95156051]
[1771060982020,2.00017476,86.199,86.17,0.2]
[1771060982221,2.00017476,86.212,86.172,1.95156051]
[1771060982530,5.80965019,86.19,86.172,1.95156051]
[1771060982732,5.80965019,86.19,86.17,0.2]
[1771060982915,2.00017476,86.189,86.17,0.2]
[1771060983833,17.41202787,86.19,86.15,48.86]
[1771060983834,2.00017476,86.179,86.15,48.86]
[1771060984028,2.00017476,86.179,86.15,50.81156051]
[1771060984232,2.00017476,86.179,86.151,1.95156051]
[1771060984421,2.00017476,86.187,86.151,1.95156051]
[1771060985112,11.60281252,86.186,86.151,1.95156051]
[1771060985316,2.00017476,86.185,86.153,1.95156051]
[1771060987232,11.60308177,86.184,86.155,1.95156051]
[1771060987815,2.00017476,86.183,86.155,1.95156051]
[1771060989322,2.00017476,86.183,86.157,1.95156051]
[1771060989524,2.00017476,86.181,86.157,1.95156051]
[1771060990326,2.00017476,86.181,86.15,48.88]
[1771060990526,2.00017476,86.179,86.15,48.88]
[1771060990727,2.00017476,86.179,86.151,11.60752632]
[1771060991841,2.00017476,86.179,86.152,1.95156051]
[1771060992640,2.00017476,86.177,86.152,1.95156051]
[1771060993142,2.00017476,86.169,86.15,48.88]
[1771060993325,2.00017476,86.167,86.14,0.2]
[1771060994029,2.00017476,86.159,86.14,0.2]
[1771060994935,5.80965019,86.15,86.121,62.54299588]
[1771060995136,5.80965019,86.15,86.12,0.2]
[1771060995137,2.00017476,86.139,86.12,0.2]
[1771060995342,2.00017476,86.149,86.122,1.95156051]
[1771060995640,2.00017476,86.147,86.122,1.95156051]
[1771060996343,2.00017476,86.149,86.122,1.95156051]
[1771060997044,2.00017476,86.149,86.12,0.2]
[1771060997428,2.00017476,86.147,86.12,0.2]
[1771060997942,11.60793053,86.148,86.1,51.15156051]
[1771060997943,2.00017476,86.129,86.1,51.15156051]
[1771060998321,2.00017476,86.129,86.1,2.15156051]
[1771060999450,2.00017476,86.129,86.1,0.2]
[1771060999646,2.00017476,86.127,86.1,0.2]
[1771060999952,2.00017476,86.127,86.101,1.95156051]
[1771061000843,2.00017476,86.138,86.102,1.95156051]
[1771061001150,2.00017476,86.138,86.111,1.95156051]
[1771061002546,2.00017476,86.137,86.111,1.95156051]
[1771061004537,11.60954769,86.136,86.111,1.95156051]
[1771061004737,2.00017476,86.135,86.111,1.95156051]
[1771061005652,11.60981726,86.134,86.111,1.95156051]
[1771061005852,2.00017476,86.133,86.111,1.95156051]
[1771061006049,2.00017476,86.133,86.105,49.02]
[1771061006248,11.60883669,86.142,86.106,1.95156051]
[1771061007054,11.60883669,86.142,86.111,1.95156051]
[1771061007055,2.00017476,86.141,86.111,1.95156051]
[1771061007565,2.00017476,86.141,86.113,1.95156051]
[1771061008953,2.00017476,86.14,86.113,1.95156051]
[1771061009351,2.00017476,86.139,86.113,1.95156051]
[1771061009760,2.00017476,86.137,86.113,1.95156051]
[1771061010052,2.00017476,86.137,86.115,1.95156051]
[1771061011444,13.63504264,86.137,86.11,1.96113954]
[1771061011952,2.02561515,86.137,86.11,1.96113954]
[1771061012155,11.60887849,86.141,86.111,1.96113954]
[1771061013061,13.63449364,86.141,86.111,1.96113954]
[1771061014363,2.02561515,86.147,86.113,1.96113954]
[1771061015842,2.02561515,86.139,86.113,1.96113954]
[1771061016765,2.02561515,86.146,86.115,1.96113954]
[1771061018263,2.02561515,86.144,86.115,1.96113954]
[1771061019142,2.02561515,86.139,86.104,11.61382014]
[1771061019357,2.02561515,86.129,86.104,11.61382014]
[1771061019565,2.02561515,86.129,86.102,1.96113954]
[1771061019952,2.02561515,86.129,86.102,13.57515464]
[1771061020152,2.0379074,86.128,86.102,13.57515464]
[1771061022066,2.0379074,86.128,86.104,11.6138623]
[1771061022367,2.0379074,86.128,86.104,13.68726547]
[1771061022566,2.0379074,86.126,86.104,2.07340317]
[1771061023045,2.0379074,86.126,86.1,0.2]
[1771061023671,2.0379074,86.119,86.1,0.2]
[1771061024666,11.61119472,86.124,86.101,2.07340317]
[1771061025863,67.62,86.149,86.1,0.2]
[1771061025864,2.0379074,86.14,86.103,2.07340317]
[1771061026063,2.0379074,86.139,86.103,2.07340317]
[1771061026254,2.0379074,86.138,86.103,2.07340317]
[1771061029570,2.0379074,86.136,86.105,2.07340317]
[1771061030062,40.63294518,86.137,86.105,2.07340317]
[1771061030063,2.0379074,86.129,86.105,2.07340317]
[1771061030267,2.0379074,86.129,86.1,0.2]
[1771061030471,2.0379074,86.129,86.1,2.27340317]
[1771061031274,2.0379074,86.129,86.102,2.07340317]
[1771061032153,2.0379074,86.127,86.104,2.07340317]
[1771061032356,29.02353227,86.137,86.104,2.07340317]
[1771061032669,13.64745509,86.136,86.104,2.07340317]
[1771061032874,11.60954769,86.136,86.104,2.07340317]
[1771061033070,2.0379074,86.135,86.104,2.07340317]
[1771061034652,11.60981726,86.134,86.104,2.07340317]
[1771061034854,2.0379074,86.133,86.104,2.07340317]
[1771061035468,5.80965019,86.13,86.104,2.07340317]
[1771061035674,2.0379074,86.129,86.104,2.07340317]
[1771061036053,2.0379074,86.129,86.1,0.2]
[1771061036258,2.0379074,86.129,86.1,2.27340317]
[1771061036651,2.0379074,86.127,86.1,2.27340317]
[1771061037477,2.0379074,86.127,86.1,0.2]
[1771061038855,2.0379074,86.125,86.1,0.2]
[1771061041085,1.96342829,86.123,86.1,0.2]
[1771061042981,5.83325976,86.13,86.082,11.61673933]
[1771061042982,11.6133228,86.108,86.082,2.09543892]
[1771061043180,1.96342829,86.107,86.082,2.09543892]
[1771061044160,1.96342829,86.107,86.072,68.16170627]
[1771061044161,1.96342829,86.107,86.073,2.09543892]
[1771061044963,11.6133228,86.108,86.081,2.09543892]
[1771061045287,1.96342829,86.114,86.081,2.09543892]
[1771061045463,1.96342829,86.099,86.072,7.32360548]
[1771061046388,1.96342829,86.114,86.08,5.83325976]
[1771061047086,1.96342829,86.114,86.073,11.61804514]
[1771061047087,1.96342829,86.109,86.073,11.61804514]
[1771061047463,1.96342829,86.109,86.074,2.09543892]
[1771061049479,11.6133228,86.108,86.074,2.09543892]
[1771061049806,1.96342829,86.099,86.067,2.09543892]
[1771061050763,1.96342829,86.089,86.06,0.1]
[1771061051194,1.96342829,86.089,86.061,2.09543892]
[1771061051572,5.83325976,86.1,86.061,2.09543892]
[1771061051573,1.96342829,86.087,86.061,2.09543892]
[1771061052183,1.96342829,86.087,86.06,0.1]
[1771061052389,1.96342829,86.087,86.06,2.19543892]
[1771061053685,5.83325976,86.09,86.01,0.1]
[1771061053686,1.96342829,86.084,86.01,0.1]
[1771061053890,98.73847082,86.086,86.01,0.1]
[1771061053891,1.96342829,86.065,86.032,2.09543892]
[1771061054087,1.96342829,86.079,86.041,2.09543892]
[1771061054807,1.96342829,86.079,86.051,2.09543892]
[1771061056191,1.96342829,86.077,86.051,2.09543892]
[1771061056993,67.46,86.095,86.053,2.09543892]
[1771061056994,1.96342829,86.093,86.053,2.09543892]
[1771061057987,1.96342829,86.093,86.061,2.09543892]
[1771061058186,1.96342829,86.091,86.063,2.09543892]
[1771061059701,1.96342829,86.089,86.063,2.09543892]
[1771061060496,1.96342829,86.087,86.052,2.09543892]
[1771061060684,11.61602081,86.088,86.04,5.83325976]
[1771061060685,1.96342829,86.079,86.047,11.62153297]
[1771061060887,1.96342829,86.079,86.01,64.06555731]
[1771061060888,1.96342829,86.059,86.038,2.09543892]
[1771061061903,13.58344703,86.059,86.038,2.09543892]
[1771061063999,1.96342829,86.058,86.025,2.09543892]
[1771061064383,1.96342829,86.049,86.02,0.2]
[1771061066491,11.6214206,86.048,86.02,0.2]
[1771061066695,11.6214206,86.048,86.024,2.09543892]
[1771061066900,1.96342829,86.048,86.025,11.62442751]
[1771061067300,13.58484889,86.048,86.024,2.09543892]
[1771061068491,13.58484889,86.048,86.025,11.62446817]
[1771061068991,1.96342829,86.047,86.024,2.09543892]
[1771061069187,1.96342829,86.047,86.02,11.82510857]
[1771061069483,1.96342829,86.047,86.026,2.09543892]
[1771061070687,13.58508797,86.047,86.026,2.09543892]
[1771061071802,11.62165968,86.047,86.026,2.09543892]
[1771061072104,5.83325976,86.04,86.02,0.2]
[1771061072320,5.83325976,86.04,86.01,0.1]
[1771061072321,1.97463911,86.029,86.01,0.1]
[1771061072510,5.83325976,86.04,85.986,2.09319669]
[1771061072511,1.97463911,86.019,85.986,2.09319669]
[1771061072805,1.97463911,86.029,85.991,2.09319669]
[1771061073386,1.97463911,86.029,85.992,2.09319669]
[1771061073604,1.97463911,86.039,86.001,2.09319669]
[1771061073785,7.80789887,86.03,86.001,2.09319669]
[1771061073987,40.67639025,86.045,85.99,6.03325976]
[1771061073988,7.80789887,86.01,85.99,0.2]
[1771061074286,1.97463911,86.009,85.99,0.2]
[1771061075327,5.83325976,86.01,85.99,0.2]
[1771061075328,1.97463911,86.007,85.99,0.2]
[1771061075608,1.97463911,85.999,85.98,0.1]
[1771061076907,1.97463911,86.007,85.981,2.09319669]
[1771061077600,1.97463911,86.005,85.98,0.1]
[1771061077804,1.97463911,85.999,85.98,0.1]
[1771061079984,2.08245493,85.997,85.98,0.1]
[1771061082297,2.08245493,85.995,85.98,0.1]
[1771061082483,2.08245493,85.989,85.97,0.2]
[1771061084088,2.08245493,85.997,85.971,2.04849292]